Cogmind - Beta 9.6 @@@ ROGUE MODE // 2020.08.18 @ 12:21:28 Player: Cracklepappy Result: Self-destructed Performance ------------- Evolutions (2) 1000 Regions Visited (4) 800 Robots Destroyed (42) 210 Value Destroyed (1281) 1281 Prototype IDs (3) 60 Alien Tech Used (0) 0 Bonus (0) 0 TOTAL SCORE: 3351 Bonus ------- None Cogmind --------- Core Integrity 429/550 Matter 190/500 Energy 100/100 System Corruption 0% Temperature Cool (0) Movement Core (400) Ox7 Location -8/Materials Parts ------- > --- POWER (1) -------- (None) > --- PROPULSION (3) --- (None) > --- UTILITY (5) ------ Medium Storage Unit Medium Storage Unit High-capacity Matter Pod Signal Interpreter Transmission Jammer > --- WEAPON (2) ------- Autogun > --- INVENTORY (12) --- Light Deuterium Engine Light Deuterium Engine Light Deuterium Engine Light Nuclear Core Medium Storage Unit Medium Storage Unit High-capacity Storage Unit Hacking Suite Peak State ------------ > --- POWER ------------ (None) > --- PROPULSION ------- Aluminum Leg Compact Wheel > --- UTILITY ---------- Medium Storage Unit Medium Storage Unit High-capacity Matter Pod Signal Interpreter Transmission Jammer > --- WEAPON ----------- Heavy Assault Rifle Improved Grenade Launcher > --- INVENTORY -------- Light Deuterium Engine Light Deuterium Engine Light Deuterium Engine Light Nuclear Core Medium Storage Unit Medium Storage Unit High-capacity Storage Unit Hacking Suite Autogun [Rating: 16] Favorites ----------- Power Light Ion Engine Engine Light Ion Engine Propulsion Aluminum Leg Leg Aluminum Leg Wheel Wheel Utility Medium Storage Unit Device Transmission Jammer Storage Medium Storage Unit Processor Signal Interpreter Protection Light Armor Plating Weapon Assault Rifle Ballistic Gun Assault Rifle Ballistic Cannon Light Cannon Launcher Improved Grenade Launcher Build | -11 -10 -9 -9 -8 ------- Run | Scr Mat Mat Min Mat Slots Evolved 4 | . . 2 . 2 Power . | . . . . . Propulsion 1 | . . 1 . . Utility 3 | . . 1 . 2 Weapon . | . . . . . Parts Attached 32 | 7 11 8 2 4 Power 5 | 1 2 2 . . Engine 5 | 1 2 2 . . Core . | . . . . . Reactor . | . . . . . Propulsion 9 | 2 2 3 2 . Treads . | . . . . . Leg 4 | . . 3 1 . Wheel 5 | 2 2 . 1 . Hover . | . . . . . Flight . | . . . . . Utility 8 | 2 2 2 . 2 Device 1 | . . . . 1 Storage 5 | 2 2 1 . . Processor 1 | . . . . 1 Hackware . | . . . . . Protection 1 | . . 1 . . Artifact . | . . . . . Weapon 10 | 2 5 1 . 2 Energy Gun . | . . . . . Energy Cannon . | . . . . . Ballistic Gun 7 | 2 3 1 . 1 Ballistic Cannon 1 | . 1 . . . Launcher 2 | . 1 . . 1 Special Weapon . | . . . . . Impact Weapon . | . . . . . Slashing Weapon . | . . . . . Piercing Weapon . | . . . . . Special Melee Weapon . | . . . . . Unidentified Prototypes . | . . . . . Parts Lost 16 | . 5 4 . 7 Power 3 | . 2 . . 1 Propulsion 7 | . 2 2 . 3 Utility 1 | . . 1 . . Weapon 5 | . 1 1 . 3 Highest Loss Streak 4 | . 3 2 . 4 Average Slot Usage (%) 93 | . 95 96 100 75 Engine 10 | . 11 10 11 3 Leg 13 | . . 32 22 10 Wheel 14 | . 25 . 11 8 Storage 27 | . 28 25 33 27 Protection 1 | . . 5 . . Ballistic Gun 17 | . 21 12 22 11 Ballistic Cannon 6 | . 5 9 . . Naked Turns . | . . . . . Heaviest Build 34 | 15 25 29 29 34 Greatest Support 30 | 26 26 30 16 16 Greatest Overweight (x) 8 | . 8 2 1 7 Average Overweight (x) . | . . . 1 1 Largest Inventory Capacity 12 | 8 12 12 12 12 Average Capacity 11 | 6 11 12 12 12 Most Carried 12 | 8 12 12 10 10 Average Carried 10 | 4 11 11 9 8 Final Capacity 12 | 8 12 12 12 12 Final Carried 12 | 8 12 11 10 8 Class Distribution -------------------- 100% | Mutant Dominant Class ---------------- Mutant | -10/Materials Mutant | -9/Materials Mutant | -9/Mines Mutant | -8/Materials Resources | -11 -10 -9 -9 -8 ----------- Run | Scr Mat Mat Min Mat Matter Collected 1316 | 260 629 372 48 7 Remotely . | . . . . . Salvage Created 1147 | 66 542 408 . 131 Parts 79 | 4 35 36 . 4 Haulers Intercepted 2 | . 2 . . . Recyclers Shooed . | . . . . . Parts Field Recycled . | . . . . . Retrieved Matter . | . . . . . Parts Self-Destructed . | . . . . . Prevented . | . . . . . Kills | -11 -10 -9 -9 -8 ------- Run | Scr Mat Mat Min Mat Combat Hostiles Destroyed 32 | . 13 12 . 7 Guns 16 | . 8 7 . 1 Cannons 7 | . 2 5 . . AOE 9 | . 3 . . 6 Classes Destroyed 8 | 2 5 1 . . Tunneler 1 | 1 . . . . Hauler 2 | . 2 . . . Recycler 1 | 1 . . . . Operator 1 | . 1 . . . Watcher 5 | . 2 3 . . Swarmer 6 | . 3 3 . . Grunt 21 | . 10 4 . 7 Sentry 5 | . . 5 . . Best Kill Streak 6 | 2 4 3 . 6 Combat Bots Only 6 | . 3 3 . 6 Max Kills in Single Turn 3 | 1 3 1 . 2 Gunslinging . | . . . . . Exploded 3 | . 3 . . 2 Melee . | . . . . . Uniques/NPCs Destroyed . | . . . . . Combat | -11 -10 -9 -9 -8 -------- Run | Scr Mat Mat Min Mat Damage Taken 2106 | . 748 725 . 633 Core 440 | . 186 133 . 121 Absorbed by Shields . | . . . . . Core Remaining (%) 63 | 100 25 . 66 . Volleys Fired 171 | 9 73 60 . 29 Largest 2 | 2 2 2 . 1 Hottest 55 | 40 55 55 . 36 Shots Fired 295 | 18 133 115 . 29 Gun 211 | 18 113 64 . 16 Cannon 68 | . 17 51 . . Launcher 16 | . 3 . . 13 Special . | . . . . . Kinetic 279 | 18 130 115 . 16 Thermal . | . . . . . Explosive 16 | . 3 . . 13 Electromagnetic . | . . . . . Robot Hit Streak 11 | 8 11 8 . 8 Robot Miss Streak 6 | 3 4 6 . 1 Penetration Max . | . . . . . Secondary Targets 1 | . 1 . . . Max Gunslinging Chain 1 | . 1 . . . Shots Hit Robots 185 | 13 91 59 . 22 Core Hits 77 | 3 30 25 . 19 Critical Hits 4 | . 3 1 . . Critical Kills 3 | . 2 1 . . Critical Parts Destroyed 1 | . 1 . . . Melee Attacks . | . . . . . Impact . | . . . . . Slashing . | . . . . . Piercing . | . . . . . Sneak Attacks . | . . . . . Combat Hostiles . | . . . . . Follow-up Attacks . | . . . . . Damage Inflicted 3619 | 161 1377 730 . 1351 Guns 1659 | 161 995 328 . 175 Cannons 560 | . 158 402 . . Explosions 1400 | . 224 . . 1176 Melee . | . . . . . Ramming . | . . . . . Kinetic 2219 | 161 1153 730 . 175 Thermal . | . . . . . Explosive 1400 | . 224 . . 1176 Electromagnetic . | . . . . . Impact . | . . . . . Slashing . | . . . . . Piercing . | . . . . . Highest Corruption . | . . . . . Average Corruption . | . . . . . Corruption Purged . | . . . . . Overload Shots . | . . . . . Overflow Damage 117 | . 23 . . 94 Projectiles . | . . . . . Explosions 117 | . 23 . . 94 Melee . | . . . . . Knockbacks 2 | . 1 1 . . Impact . | . . . . . Kinetic 2 | . 1 1 . . Secondary . | . . . . . Self-Inflicted Damage 125 | . 25 . . 100 Shots 5 | . 1 . . 4 Rammed . | . . . . . Targets Rammed . | . . . . . Kicked . | . . . . . Crushed . | . . . . . Highest Temperature 50 | . 4 34 . 50 Average Temperature 11 | . 2 11 . 18 Received Heat Transfer 867 | . 378 183 . 306 Siege Activations . | . . . . . Robots Corrupted . | . . . . . Combat Hostiles . | . . . . . Parts Fried . | . . . . . Impact Corruptions . | . . . . . Robots Melted . | . . . . . Combat Hostiles . | . . . . . Parts Melted . | . . . . . Heat Transferred . | . . . . . Parts Sabotaged . | . . . . . Parts Stolen . | . . . . . Parts Stripped . | . . . . . Power Chain Reactions . | . . . . . Missiles Intercepted . | . . . . . Alert | -11 -10 -9 -9 -8 ------- Run | Scr Mat Mat Min Mat Peak Influence 292 | 10 225 292 12 210 Average Influence 90 | 2 73 132 12 128 Maximum Alert Level 1 | . 1 1 . 1 Low Security (%) 88 | 100 96 75 100 83 Level 1 11 | . 3 24 . 16 Level 2 . | . . . . . Level 3 . | . . . . . Level 4 . | . . . . . Level 5 . | . . . . . High Security . | . . . . . Max Security . | . . . . . Squads Dispatched 1 | . 1 . . . Investigation . | . . . . . Extermination . | . . . . . Reinforcement 1 | . 1 . . . Assault . | . . . . . Garrison . | . . . . . Intercept . | . . . . . Construction Impeded . | . . . . . Haulers Reinforced . | . . . . . Stealth | -11 -10 -9 -9 -8 --------- Run | Scr Mat Mat Min Mat Distress Signals 5 | . 2 2 . 1 Communications Jammed . | . . . . . Distress Signals . | . . . . . Times Spotted 54 | . 22 22 . 10 Peak Tracking Total 6 | . 4 4 . 6 Tactical Retreats 2 | . 1 . . 1 Traps | -11 -10 -9 -9 -8 ------- Run | Scr Mat Mat Min Mat Traps Triggered . | . . . . . Indirectly . | . . . . . Trap Hack Attempts . | . . . . . Triggered . | . . . . . Disarmed . | . . . . . Reprogrammed . | . . . . . Reused . | . . . . . Traps Extracted . | . . . . . Installed . | . . . . . Triggered . | . . . . . Machines | -11 -10 -9 -9 -8 ---------- Run | Scr Mat Mat Min Mat Machines Disabled 2 | . . . . 2 Max in Single Turn 1 | . . . . 1 Machines Sabotaged . | . . . . . Garrisons Compromised . | . . . . . Overloaded Fab Kills . | . . . . . Fab Network Shutdowns . | . . . . . Hacking | -11 -10 -9 -9 -8 --------- Run | Scr Mat Mat Min Mat Machines Accessed 6 | . 3 2 . 1 Terminals 6 | . 3 2 . 1 Fabricators . | . . . . . Repair Stations . | . . . . . Recycling Units . | . . . . . Scanalyzers . | . . . . . Garrison Access . | . . . . . Total Hacks 20 | . 10 7 . 3 Successful 13 | . 6 5 . 2 Failed 7 | . 4 2 . 1 Catastrophic . | . . . . . Database Lockouts . | . . . . . Manual 7 | . 5 2 . . Terminals 20 | . 10 7 . 3 Fabricators . | . . . . . Repair Stations . | . . . . . Recycling Units . | . . . . . Scanalyzers . | . . . . . Garrison Access . | . . . . . Terminal Hacks 13 | . 6 5 . 2 Part Schematic 1 | . 1 . . . Prototype ID Bank 1 | . . . . 1 Level Access Points 1 | . 1 . . . Recycling Unit Index 1 | . 1 . . . Alert Level 1 | . . 1 . . Unreport Threat 3 | . . 3 . . Locate Traps 1 | . . 1 . . Dispatch Records 3 | . 2 . . 1 Maintenance Status 1 | . 1 . . . Fabricator Hacks . | . . . . . Repair Station Hacks . | . . . . . Recycling Unit Hacks . | . . . . . Scanalyzer . | . . . . . Garrison Access Hacks . | . . . . . Unauthorized Hacks . | . . . . . Terminals . | . . . . . Fabricators . | . . . . . Repair Stations . | . . . . . Recycling Units . | . . . . . Scanalyzers . | . . . . . Garrison Access . | . . . . . Data Cores Recovered . | . . . . . Used . | . . . . . Hacking Detections 6 | . 3 2 . 1 Full Trace Events . | . . . . . Feedback Events . | . . . . . Feedback Blocked . | . . . . . Robot Schematics Acquired . | . . . . . Robots Built . | . . . . . Matter . | . . . . . Time . | . . . . . Total Robot Build Rating . | . . . . . Part Schematics Acquired 1 | . 1 . . . Parts Built . | . . . . . Matter . | . . . . . Time . | . . . . . Total Part Build Rating . | . . . . . Parts Repaired . | . . . . . Time . | . . . . . Parts Recycled . | . . . . . Recycled Matter . | . . . . . Retrieved Matter . | . . . . . Retrieved Components . | . . . . . Parts Scanalyzed . | . . . . . Part Schematics Acquired . | . . . . . Parts Damaged . | . . . . . Bothacking | -11 -10 -9 -9 -8 ------------ Run | Scr Mat Mat Min Mat Used RIF Installer . | . . . . . Robots Hacked . | . . . . . Non-combat . | . . . . . Combat . | . . . . . Robot Hacks Applied . | . . . . . Relay Couplers Released . | . . . . . Robots Rewired . | . . . . . Allies Hacked . | . . . . . Hacks Repelled . | . . . . . Allies | -11 -10 -9 -9 -8 -------- Run | Scr Mat Mat Min Mat Total Allies . | . . . . . Largest Group . | . . . . . Highest-Rated Group . | . . . . . Highest-Rated Ally . | . . . . . Total Orders . | . . . . . Ally Attacks . | . . . . . Total Damage . | . . . . . Kills . | . . . . . Allies Corrupted . | . . . . . Allies Melted . | . . . . . Intel | -11 -10 -9 -9 -8 ------- Run | Scr Mat Mat Min Mat Robot Analysis Total . | . . . . . Derelict Logs Recovered . | . . . . . Drone Launches . | . . . . . Drone Recoveries . | . . . . . Exploration | -11 -10 -9 -9 -8 ------------- Run | Scr Mat Mat Min Mat Turns Passed 1862 | 133 877 590 78 184 Spaces Moved 1173 | 99 617 301 69 87 Core 17 | 11 4 . . 2 Treads . | . . . . . Legs 301 | . . 301 . . Wheels 855 | 88 613 . 69 85 Hover . | . . . . . Flight . | . . . . . Fastest Speed 50 | 50 90 120 110 110 Average Speed 101 | 85 92 120 110 117 Slowest Speed 450 | 90 450 180 110 400 Overloaded Moves . | . . . . . Propulsion Burnouts . | . . . . . Robots Hopped . | . . . . . Cave-ins Triggered . | . . . . . Exploration Rate (%) 26 | 4 67 27 26 9 Regions Visited 4 Branch Regions 1 Pre-discovered Areas . | . . . . . Known Exits Taken 1 | . 1 . . . Unknown Exits Taken 3 | 1 . 1 1 . Scrap Searched 1 | . . . 1 . Spaces Dug . | . . . . . Terrain Destroyed 57 | . 15 1 . 41 Melee . | . . . . . Projectile 1 | . . 1 . . AOE 56 | . 15 . . 41 Actions | -11 -10 -9 -9 -8 --------- Run | Scr Mat Mat Min Mat Total 1568 | 129 798 427 71 143 Wait 124 | . 63 40 . 21 Move 1169 | 98 616 300 68 87 Hop . | . . . . . Pick Up 50 | 15 21 11 1 2 Fast Attach 1 | . 1 . . . Attach 23 | 7 5 5 2 4 Detach . | . . . . . Swap 8 | . 5 3 . . Drop 22 | . 14 8 . . Fire 171 | 9 73 60 . 29 Melee . | . . . . . Ram . | . . . . . Kick . | . . . . . Crush . | . . . . . Escape Stasis . | . . . . . Rewire . | . . . . . Trap . | . . . . . Miscellaneous . | . . . . . Route ------- -11/Scrapyard -10/Materials (discovered 5 exits: *Mat x3 / [*Min x2]) -9/Materials -9/Mines -8/Materials History --------- Turn | Location | Event 4 | -11/Scrapyard | Discovered new exit (range 15) 134 | -11/Scrapyard | Entered Materials 174 | -10/Materials | Discovered new exit (range 7) 230 | -10/Materials | Discovered new exit (range 3) 315 | -10/Materials | Build established: Mutant 333 | -10/Materials | Identified exit to Materials 349 | -10/Materials | Discovered new exit (range 5) 528 | -10/Materials | Core integrity fell below 50% 568 | -10/Materials | Lost 3 parts (2n1w) 1011 | -10/Materials | Entered another Materials area 1011 | -9/Materials | Evolved 2 slots: Propulsion x1, Utility x1 1582 | -9/Materials | Discovered new exit (range 4) 1601 | -9/Materials | Entered Mines 1654 | -9/Mines | Discovered new exit (range 14) 1658 | -9/Mines | Assembled infested the area 1679 | -9/Mines | Entered Materials 1679 | -8/Materials | Evolved 2 slots: Utility x2 1774 | -8/Materials | Lost 3 parts (1p1n1w) 1863 | -8/Materials | Self-destructed Last Messages --------------- 01809_ Electrolysis Chamber disabled. 01815_ The unstable cave ceiling collapses. 01815_ Destroyed Aluminum Leg. 01819_ Destroyed Particle Gun. 01819_ Destroyed Aluminum Leg. 01819_ Destroyed Lgt. Nuclear Core. 01821_ Imp. Grenade Launcher destroyed. 01823_ U-05 Engineer lays Concrete. 01824_ The unstable cave ceiling collapses. 01825_ U-05 Engineer lays Concrete. 01827_ The unstable cave ceiling collapses. 01827_ U-05 Engineer lays Concrete. 01839_ Hvy. Assault Rifle destroyed. 01847_ The unstable cave ceiling collapses. 01847_ Aluminum Leg destroyed. 01851_ Com. Wheel destroyed. 01852_ The unstable cave ceiling collapses. 01853_ G-47 Trooper destroyed. 01854_ U-05 Engineer builds a Door. 01862_ U-05 Engineer builds a Wall. Map ----- +----------------------------------------------------+ | ?????????????????????????#####???????????????????? | | ??????????????????######## #???????????????????? | | ??????????????????# # ###########?????????? | | ??????????????????# """ # # #?????????? | | ??????????????????# """ #?????????? | | ??????????????????# """ # """ #?????????? | | ??????????????????# """ """ #?????????? | | ??????????????????# """ #?????????? | | ?????????????????####### #?????????? | | ?????????????????# # "T" #?????????? | | ?????????????????# """ """ #?????????? | | ?????????????????# """ ############ ?????? | | ?????????????????# ! """ ????? | | ?????????????????# ?????? | | ?????????????????#########"" ] #######??????? | | ?????????????????????????#"T #????????????? | | ?????????????????#########"" #????????????? | | ?????????????????#! !! # #????????????? | | ?????????????????# !! ! + #????????????? | | ?????????????????# # """ #????????????? | | ?????????????????####### # """ #????????????? | | ??????????????????# """ #????????????? | | ??????????????????# #????????????? | | ??????????????????# #????????????? | | ??????????????????# #% " #????????????? | | ??????????????????# @g " #????????????? | | ??????????????????# #u ??????????? | | ??????????????????### # ????????? | | ????????????????????### # a ?????????? | | ?????????????????????## #### g#####?????????? | | ??????????????????????#######??? #?????????????? | | ?????????????????????????????????? #?????????????? | | ???????????????????????????????????#?????????????? | | ?????????????????????????????????????????????????? | | ?????????????????????????????????????????????????? | | ?????????????????????????????????????????????????? | | ?????????????????????????????????????????????????? | | ?????????????????????????????????????????????????? | | ?????????????????????????????????????????????????? | | ?????????????????????????????????????????????????? | | ?????????????????????????????????????????????????? | | ?????????????????????????????????????????????????? | | ?????????????????????????????????????????????????? | | ?????????????????????????????????????????????????? | | ?????????????????????????????????????????????????? | | ?????????????????????????????????????????????????? | | ?????????????????????????????????????????????????? | | ?????????????????????????????????????????????????? | | ?????????????????????????????????????????????????? | | ?????????????????????????????????????????????????? | +----------------------------------------------------+ Best States ------------- Heat Dissipation 31 Energy Generation 14 Energy Capacity 250 Matter Stores 426 Matter Capacity 500 Sight Range 16 Terrain Scan Density 10 Jamming Range 8 Armor Coverage 150 Evasion (%) 42 Item Schematics ----------------- Hcp. Storage Unit | -10/Materials | Hacked Robot Schematics ------------------ None Fabricated ------------ Nothing Alien Tech Used ----------------- None Achievements -------------- None Challenges ------------ None Game ------ Seed CorruptionCompactCloak Manual? 0 Play Time 00:25:49 Cumulative 91.3 hours Start 2020.08.18 @ 11:45:08 End 2020.08.18 @ 12:21:28 Sessions 1 Manual Loads 0 Difficulty Rogue Special Mode None Game No. 115 Rogue 115 Adventurer 0 Explorer 0 Win Type - Total 1 Types 1/0/0/0/0/0/0 Lore% 48 Gallery% 58 Achievement% 44 Wizard Run 0 Options --------- ASCII 0 Keyboard 0 Movement Numpad Keybinds 0 Fullscreen 2 Font 24/Smallcaps Map View 76x50 Tactical HUD 1 Map Filters NONE Filters NONE Steam 1 RUN: 499367c0-e783-4b91-9d29-4112ab5c41fb